bitfinex/quotes_ETHUSD_20260227
["timestamp","ask_amount","ask_price","bid_price","bid_amount"]
[1772193024549,1.364,1966.2,1965.0,0.90050514]
[1772193024725,1.27142348,1966.3,1965.2,0.90050514]
[1772193024929,1.364,1966.2,1965.2,0.90050514]
[1772193025130,0.91077465,1966.1,1965.2,0.90050514]
[1772193025334,0.91077465,1966.1,1965.1,1.27219988]
[1772193025822,0.91077465,1965.8,1965.0,1.27221399]
[1772193026023,1.364,1965.7,1965.0,1.27221399]
[1772193026637,2.27477465,1965.7,1965.0,1.27221399]
[1772193026820,1.27187627,1965.6,1964.9,5.08916883]
[1772193027021,0.91077465,1965.5,1964.6,1.27252366]
[1772193027247,0.91077465,1965.5,1964.2,4.88448649]
[1772193027577,3.22290391,1965.6,1964.2,4.88448649]
[1772193027578,2.67494605,1965.3,1964.3,5.09035377]
[1772193027730,2.27377465,1965.2,1964.3,5.09035377]
[1772193028053,2.27377465,1965.2,1964.3,1.27271801]
[1772193028232,1.363,1965.1,1964.3,1.27271801]
[1772193028431,2.27377465,1965.1,1964.2,1.27273339]
[1772193028832,3.94721068,1965.0,1964.0,1.27291242]
[1772193029641,0.91077465,1964.9,1964.0,1.27291242]
[1772193030149,0.91077465,1964.9,1963.8,0.0011]
[1772193030355,0.91077465,1964.9,1963.8,2.17463906]
[1772193030356,1.7641714,1964.7,1963.8,2.17463906]
[1772193030655,6.809262,1964.9,1963.9,0.90050514]
[1772193030828,6.809262,1964.9,1964.0,2.17341756]
[1772193030829,1.27239413,1964.8,1964.0,2.17341756]
[1772193031367,1.27200569,1965.4,1964.1,0.90050514]
[1772193031569,1.7641714,1965.5,1964.3,0.90050514]
[1772193031926,3.03598296,1965.7,1964.4,0.90050514]
[1772193032125,1.363,1965.7,1964.4,0.90050514]
[1772193032357,3.1271714,1965.7,1964.4,0.90050514]
[1772193033354,1.27187627,1965.6,1964.6,0.90050514]
[1772193033552,1.7641714,1965.4,1964.4,1.27261517]
[1772193033859,1.7641714,1965.4,1964.5,0.90050514]
[1772193034025,0.4115801,1966.2,1964.8,0.90050514]
[1772193034228,1.7641714,1965.8,1964.8,0.90050514]
[1772193034640,1.088,1965.7,1964.8,0.90050514]
[1772193035157,1.239,1965.8,1964.8,0.90050514]
[1772193035453,2.1757515,1966.1,1965.0,0.90050514]
[1772193035454,1.239,1965.9,1965.0,0.90050514]
[1772193035624,1.7641714,1965.8,1964.9,1.27232938]
[1772193035825,1.7641714,1965.8,1964.9,2.17283452]
[1772193036021,1.362,1965.7,1964.9,2.17283452]
[1772193036757,1.361,1965.7,1964.9,2.17283452]
[1772193036962,1.361,1965.7,1965.0,0.90050514]
[1772193037253,1.27187627,1965.6,1965.0,0.90050514]
[1772193037452,1.27187627,1965.6,1965.0,2.17276927]
[1772193037755,1.27187627,1965.6,1964.9,1.27227883]
[1772193037937,1.27187627,1965.6,1964.7,2.17291412]
[1772193038855,1.7641714,1965.5,1964.7,0.90050514]
[1772193039349,1.27200569,1965.4,1964.7,0.90050514]
[1772193040077,1.27200569,1965.4,1964.5,1.27255859]
[1772193040365,1.361,1965.3,1964.6,0.85604464]
[1772193041658,1.27159094,1966.1,1965.2,0.85604464]
[1772193043249,1.36,1966.0,1965.2,0.85604464]
[1772193043673,1.27168218,1965.9,1965.3,1.27207042]
[1772193044338,1.27168218,1965.9,1965.1,1.27218531]
[1772193045039,1.27165626,1966.0,1965.2,0.85604464]
[1772193045665,1.27165626,1966.0,1965.3,1.27207042]
[1772193045840,1.27165626,1966.0,1965.3,2.12811506]
[1772193046041,2.63160165,1966.1,1965.4,0.85604464]
[1772193046265,1.27160165,1966.1,1965.4,0.85604464]
[1772193046739,1.27160165,1966.1,1965.2,1.27209055]
[1772193047170,0.001,1965.9,1965.2,1.27209055]
[1772193048391,0.001,1965.9,1965.3,0.85604464]
[1772193049859,1.27135882,1966.4,1965.4,0.85604464]
[1772193050057,5.08529999,1966.5,1965.6,0.85604464]
[1772193050779,1.359,1966.4,1965.6,0.85604464]
[1772193051281,13.87603819,1966.3,1965.3,2.12807798]
[1772193051480,1.7641714,1966.1,1965.3,2.12807798]
[1772193051782,2.14630559,1966.1,1965.0,2.12825935]
[1772193052355,1.27161749,1966.0,1965.0,2.12825935]
[1772193052567,1.358,1965.9,1965.0,2.12825935]
[1772193053571,1.27161749,1966.0,1965.1,0.85604464]
[1772193054186,2.09299919,1965.9,1964.9,1.27227758]
[1772193054390,2.62974687,1965.8,1965.0,0.85604464]
[1772193055479,1.27174687,1965.8,1965.0,0.85604464]
[1772193055685,1.358,1965.7,1965.0,0.85604464]
[1772193056486,2.62984276,1965.7,1965.1,2.12824452]
[1772193058004,2.62984276,1965.7,1964.8,0.85604464]
[1772193058156,3.00232214,1965.7,1964.8,0.85604464]
[1772193058685,2.32350702,1965.5,1964.6,1.27249372]
[1772193058882,2.32350702,1965.5,1964.5,5.94630784]
[1772193058883,0.37247938,1965.4,1964.5,2.12859384]
[1772193060084,0.37247938,1965.4,1965.2,0.0011]
[1772193060286,0.18685624,1965.3,1964.3,0.85604464]
[1772193060503,1.358,1965.2,1964.5,0.85604464]
[1772193060803,1.27181156,1965.7,1964.5,0.85604464]
[1772193061668,1.27181156,1965.7,1965.0,0.85714464]
[1772193061897,1.27181156,1965.7,1965.0,0.0011]
[1772193061898,3.03598296,1965.7,1965.0,0.0011]
[1772193062186,3.03598296,1965.7,1964.5,0.85604464]
[1772193062389,2.584667,1965.6,1964.5,0.85604464]
[1772193062592,1.27194098,1965.5,1964.7,0.85604464]
[1772193062961,5.08776392,1965.6,1964.7,0.85604464]
[1772193062962,1.27192665,1965.6,1964.7,0.85604464]
[1772193064890,6.85155588,1965.7,1964.7,1.27240963]
[1772193065089,6.85155588,1965.7,1964.6,2.12852684]
[1772193065090,0.55045849,1965.6,1964.6,2.12852684]
[1772193065391,1.358,1965.5,1964.7,0.85604464]
[1772193065990,0.18685624,1965.6,1964.7,0.85604464]
[1772193066193,1.358,1965.5,1964.7,0.85604464]
[1772193066374,0.18685624,1965.6,1964.7,0.85604464]
[1772193066566,1.358,1965.5,1964.7,0.85604464]
[1772193066762,1.27200569,1965.4,1964.7,0.85604464]
[1772193067370,1.27200569,1965.4,1964.7,2.12850046]
[1772193067671,1.27200569,1965.4,1964.7,0.85604464]
[1772193067869,1.27200569,1965.4,1964.4,0.85604464]
[1772193068764,1.27200569,1965.4,1964.5,1.27258844]
[1772193068964,1.27200569,1965.4,1964.5,2.12863308]
[1772193069392,1.27200569,1965.4,1964.6,0.85604464]
[1772193069591,2.63000569,1965.4,1964.6,0.85604464]
[1772193069908,1.27274696,1965.8,1965.1,0.85604464]
[1772193071160,0.001,1965.8,1965.1,0.85604464]
[1772193071561,0.001,1965.8,1965.1,1.27219526]
[1772193071785,0.001,1965.8,1965.2,0.85603357]
[1772193073373,0.001,1965.8,1965.2,2.12814307]
[1772193073701,0.001,1965.8,1965.3,0.85603357]
[1772193074773,0.001,1965.7,1965.3,0.85603357]
[1772193074972,0.001,1965.7,1963.8,0.0011]
[1772193074973,0.62648668,1965.1,1963.8,0.0011]
[1772193075306,3.5283428,1965.4,1962.8,6.85888342]
[1772193075307,1.8297074,1964.2,1963.1,0.85603357]
[1772193075506,2.47784761,1964.1,1963.2,1.27343113]
[1772193075801,1.356,1964.2,1963.2,1.27343113]
[1772193077982,1.27284761,1964.1,1963.2,1.27343113]
[1772193078702,1.27284761,1964.1,1963.1,2.12947849]
[1772193079004,2.07412414,1964.1,1963.1,2.12947849]
[1772193080013,1.27297723,1963.9,1963.0,2.53555337]
[1772193080315,2.15927653,1963.8,1962.8,2.1296752]
[1772193081716,0.80127653,1963.7,1962.7,0.0011]
[1772193081890,0.80127653,1963.5,1962.7,0.0011]
[1772193082202,2.0746428,1963.3,1962.7,0.0011]
[1772193083511,1.359,1963.2,1962.7,0.0011]
[1772193084009,1.36,1963.2,1962.7,0.0011]
[1772193085714,1.361,1963.1,1962.7,0.0011]
[1772193085942,0.80127653,1963.2,1962.7,0.0011]
[1772193086129,1.361,1963.0,1962.7,0.0011]
[1772193086291,1.27362575,1962.9,1962.7,0.0011]
[1772193086493,1.27362575,1962.9,1962.5,0.0011]
[1772193086693,1.27362575,1962.9,1962.8,0.0011]
[1772193087313,1.27362575,1962.9,1962.5,0.0011]
[1772193087314,2.07490228,1962.9,1962.5,0.0011]
[1772193087531,2.63562575,1962.9,1962.5,0.0011]
[1772193087712,1.27362575,1962.9,1962.5,0.0011]
[1772193087903,2.63562575,1962.9,1962.5,0.0011]
[1772193089626,1.364,1962.8,1962.5,0.0011]
[1772193090235,1.365,1962.8,1962.5,0.0011]
[1772193090635,1.27375554,1962.7,1962.5,0.0011]
[1772193090823,2.63874308,1962.8,1962.5,0.0011]
[1772193094525,1.27374308,1962.8,1962.5,0.0011]
[1772193094709,2.64274308,1962.8,1962.5,0.0011]
[1772193096651,1.27374308,1962.8,1962.5,0.0011]
[1772193096837,2.64474308,1962.8,1962.5,0.0011]
[1772193097635,1.27374308,1962.8,1962.5,0.0011]
[1772193097837,5.09468579,1962.9,1962.5,0.0011]
[1772193097838,1.373,1962.9,1962.5,0.0011]
[1772193098334,1.373,1962.9,1962.6,0.0011]
[1772193098638,0.001,1962.7,1962.6,0.0011]
[1772193100142,0.001,1962.7,1962.4,0.0011]
[1772193101749,2.12352247,1963.4,1962.4,0.53613281]
[1772193102454,0.85017182,1963.3,1962.4,0.53613281]
[1772193102653,1.375,1963.2,1962.4,0.53613281]
[1772193102961,2.22517182,1963.2,1962.4,0.53613281]
[1772193103661,1.273496,1963.1,1962.5,1.27388535]
[1772193104316,3.49865093,1963.2,1962.5,1.27388535]
[1772193104721,0.85017182,1963.1,1962.4,0.0011]
[1772193105046,0.85017182,1963.1,1962.4,1.27503906]
[1772193105349,0.85017182,1963.1,1962.4,0.0011]
[1772193105553,0.85017182,1962.9,1962.4,0.0011]
[1772193106564,1.375,1962.8,1962.4,0.0011]
[1772193106733,2.22517182,1962.8,1962.4,0.0011]
[1772193107754,1.27375554,1962.7,1962.4,0.0011]
[1772193110043,2.12392736,1962.7,1962.4,0.0011]
[1772193110433,2.12392736,1962.7,1962.5,0.0011]
[1772193114080,6.47077999,1962.8,1962.5,0.0011]
[1772193114081,2.64973366,1962.8,1962.5,0.0011]
[1772193114247,2.65573366,1962.8,1962.5,0.0011]
[1772193114453,2.65569458,1962.8,1962.5,0.0011]
[1772193115245,0.001,1962.8,1962.5,0.54655455]
[1772193115474,2.12369214,1963.1,1962.5,0.54655455]
[1772193115475,1.27356282,1963.0,1962.5,0.54655455]
[1772193116786,3.50566782,1963.1,1962.5,0.54655455]
[1772193117072,3.50566782,1963.1,1962.6,1.27382044]
[1772193117460,3.50566782,1963.1,1962.5,0.54655455]
[1772193117666,3.50566782,1963.1,1962.5,1.82039165]
[1772193118550,0.85017182,1963.0,1962.5,0.0011]
[1772193119858,2.12379757,1962.9,1962.5,0.0011]
[1772193120061,1.385,1962.8,1962.5,0.0011]
[1772193120445,0.85017182,1962.7,1962.4,0.0011]
[1772193120752,1.385,1962.8,1962.4,0.0011]
[1772193120962,2.23617182,1963.4,1962.4,0.54886785]
[1772193121189,0.85017182,1963.3,1962.4,0.54886785]
[1772193121973,0.85017182,1963.3,1962.4,0.0011]
[1772193121974,0.85017182,1963.1,1962.4,0.0011]
[1772193122153,0.85017182,1962.9,1962.4,0.0011]
[1772193122352,0.85017182,1963.1,1962.4,1.82408008]
[1772193122667,2.23517182,1963.1,1962.5,0.0011]
[1772193123875,0.85017182,1963.1,1962.5,0.0011]
[1772193124077,1.27356087,1963.0,1962.5,0.55139839]
[1772193125074,1.27356087,1963.0,1962.5,0.0011]
[1772193125267,0.85017182,1962.9,1962.5,0.0011]
[1772193127376,2.12455062,1963.3,1962.6,1.8253374]
[1772193127574,0.85017182,1963.2,1962.6,1.27382044]
[1772193127777,0.85017182,1963.2,1962.5,1.27498535]
[1772193128352,2.12366782,1963.1,1962.5,0.0011]
[1772193130280,3.51066782,1963.1,1962.5,0.0011]
[1772193130482,2.12366782,1963.1,1962.5,0.0011]
[1772193130783,3.51066782,1963.1,1962.5,0.0011]
[1772193131577,0.81852543,1963.0,1962.5,0.0011]
[1772193132262,0.81852543,1963.0,1962.0,5.09789785]
[1772193132463,2.09241078,1962.5,1961.8,1.27543575]
[1772193132672,2.47802561,1962.7,1961.9,0.55557482]
[1772193132673,2.66180065,1962.7,1961.9,0.55557482]
[1772193133089,0.81852543,1962.6,1961.9,1.251]
[1772193134188,0.81852543,1962.9,1962.0,0.55668408]
[1772193134474,0.18785624,1963.3,1962.4,0.55778408]
[1772193134475,2.09200432,1963.2,1962.4,0.55778408]
[1772193134676,0.001,1962.9,1962.5,1.27388535]
[1772193135479,0.001,1962.9,1962.5,1.83110832]
[1772193135685,1.27438979,1963.3,1962.6,0.55722297]
[1772193135686,0.001,1963.3,1962.6,0.55722297]
[1772193136761,0.001,1963.3,1962.8,0.55775352]
[1772193136961,0.001,1963.3,1962.9,1.251]
[1772193137385,0.81952543,1963.3,1962.6,3.08305347]
[1772193137594,0.001,1963.3,1962.7,0.55827813]
[1772193138586,0.001,1963.3,1962.8,1.27369064]
[1772193138766,0.001,1963.3,1962.7,1.83198064]
[1772193142460,0.001,1963.3,1962.8,0.56084839]
[1772193145272,0.001,1963.3,1962.9,1.27362575]
[1772193145480,0.81952543,1963.3,1962.6,2.52476482]
[1772193146360,0.81952543,1963.3,1962.6,1.251]
[1772193146562,0.81952543,1963.3,1962.4,5.09677562]
[1772193146563,0.81952543,1963.3,1962.4,0.0011]
[1772193147176,0.81852543,1963.1,1962.4,0.0011]
[1772193147379,0.81852543,1963.1,1962.7,0.0011]
[1772193147593,0.81852543,1962.9,1962.7,0.0011]
[1772193149500,2.09217817,1962.9,1962.7,0.0011]
[1772193150194,0.81852543,1962.8,1962.5,0.0011]
[1772193151191,2.09213587,1963.0,1962.5,0.0011]
[1772193151375,2.09209001,1963.0,1962.5,0.0011]
[1772193152369,1.27356458,1963.0,1962.5,0.0011]
[1772193152675,0.81852543,1962.9,1962.5,0.0011]
[1772193153694,1.27369064,1962.8,1962.5,0.0011]
[1772193154169,2.09221607,1962.8,1962.5,0.0011]
[1772193155912,1.387,1963.2,1962.5,0.56201317]
[1772193155913,5.91338286,1963.2,1962.5,0.56201317]
[1772193156217,2.09298697,1963.2,1962.5,0.56201317]
[1772193157989,2.09298697,1963.2,1962.6,1.27382044]
[1772193158203,0.81852543,1963.1,1962.5,0.56201317]
[1772193158395,0.81852543,1963.1,1962.5,1.27498382]
[1772193158912,0.81852543,1963.1,1962.6,0.0011]
[1772193159111,0.001,1962.7,1962.6,0.0011]
[1772193163928,0.82523329,1962.9,1962.4,0.0011]
[1772193164620,2.09877741,1963.1,1962.4,0.5555085]
[1772193165417,0.82523329,1963.0,1962.4,0.5555085]
[1772193166521,2.09881554,1963.0,1962.5,1.27388535]
[1772193170414,2.09881554,1963.0,1962.4,5.65119379]
[1772193170415,2.09881554,1963.0,1962.4,1.82941135]
[1772193170726,2.09881554,1963.0,1962.6,0.0011]
[1772193170890,0.82523329,1962.9,1962.6,0.0011]
[1772193171093,0.82623329,1962.9,1962.6,0.0011]
[1772193172207,2.09986256,1962.9,1962.6,0.0011]
[1772193172405,0.82623329,1962.9,1962.6,0.0011]
[1772193172720,0.82523329,1962.8,1962.3,0.0011]
[1772193174024,2.09898883,1962.7,1962.3,0.0011]
[1772193175317,0.82523329,1962.7,1962.3,0.0011]
[1772193176222,2.09899128,1962.7,1962.3,0.0011]
[1772193176409,0.82523329,1962.7,1962.3,0.0011]
[1772193177094,2.09899253,1962.7,1962.3,0.0011]
[1772193178322,0.82523329,1962.6,1962.3,0.0011]
[1772193179704,0.82523329,1962.6,1962.2,2.9747311]
[1772193179929,2.09897856,1962.8,1962.2,2.9747311]
[1772193180121,0.82523329,1962.7,1962.2,2.9747311]
[1772193181000,5.0957204,1962.9,1962.3,0.54447685]
[1772193181001,0.001,1962.9,1962.3,0.54447685]
[1772193181209,1.27443939,1963.2,1962.8,0.35361458]
[1772193181409,0.82523329,1963.1,1962.8,1.26]
[1772193182528,0.82523329,1963.1,1962.8,2.53367456]
[1772193182723,2.09873936,1963.1,1962.8,1.26]
[1772193182924,2.0987299,1963.1,1962.8,1.26]
[1772193183119,0.82523329,1963.1,1962.8,1.26]
[1772193183423,0.001,1962.9,1962.8,1.26]
[1772193186450,0.001,1962.9,1962.8,2.53369064]
[1772193186804,0.001,1962.9,1962.8,1.26]
[1772193188833,0.001,1963.2,1962.9,1.81347868]
[1772193189414,0.82523329,1963.6,1963.0,0.53940617]
[1772193189729,0.82523329,1963.5,1963.1,1.264]
[1772193190725,0.7885359,1963.3,1962.8,1.264]
[1772193191901,0.7885359,1963.3,1962.8,2.53769061]
[1772193192104,0.7885359,1963.3,1962.8,1.264]
[1772193193542,0.7885359,1963.4,1962.8,3.0747402]
[1772193195152,0.7885359,1963.4,1962.9,0.0011]
[1772193195437,0.001,1963.2,1962.9,0.0011]
[1772193195617,0.001,1963.2,1962.9,0.53724207]
[1772193195813,0.7885359,1963.5,1963.0,0.53514207]
[1772193196215,1.27321189,1963.6,1963.0,0.53514207]
[1772193196635,0.7885359,1963.5,1963.0,0.53514207]
[1772193197008,0.7885359,1963.5,1962.9,0.0011]
[1772193197310,0.7885359,1963.5,1962.9,0.53535624]
[1772193197511,0.7885359,1963.4,1962.9,1.80894679]
[1772193198642,0.7885359,1963.8,1963.0,0.5338253]
[1772193198805,1.27396176,1964.0,1963.0,0.5338253]
[1772193199011,2.06249766,1964.0,1963.0,0.5338253]
[1772193199647,0.7885359,1963.9,1963.2,0.53339396]
[1772193199846,0.7885359,1963.9,1963.3,1.79839396]
[1772193201634,2.06151902,1963.9,1963.3,3.07174653]
[1772193201841,0.7885359,1963.8,1963.3,3.07174653]
[1772193202427,0.7885359,1963.8,1963.3,1.265]
[1772193203022,0.7885359,1963.8,1963.3,2.53836517]
[1772193204752,0.7885359,1963.8,1963.3,3.06967364]
[1772193205254,2.06158082,1963.8,1963.3,3.06967364]
[1772193205456,2.06158082,1963.8,1963.3,1.79630847]
[1772193205858,0.7885359,1963.7,1963.3,1.79630847]
[1772193206156,0.7885359,1963.7,1963.3,1.265]
[1772193206653,0.7885359,1963.6,1963.3,1.265]
[1772193207526,0.7885359,1963.6,1963.3,1.2661]
[1772193208333,0.7885359,1963.7,1963.3,1.2661]
[1772193208654,1.27315799,1963.7,1963.3,1.2661]
[1772193208956,0.7885359,1963.6,1963.3,1.2661]
[1772193213665,2.06171534,1963.6,1963.3,1.2661]
[1772193214679,0.7885359,1963.5,1963.3,1.2661]
[1772193214987,0.7885359,1963.5,1963.3,1.16282141]
[1772193215155,2.0616642,1963.7,1963.3,1.16282141]
[1772193215356,0.7885359,1963.6,1963.3,1.16282141]
[1772193216072,2.06262838,1963.8,1963.3,1.68959171]
[1772193216672,0.7885359,1963.7,1963.3,1.68959171]
[1772193218083,2.06170762,1963.6,1963.3,1.16282141]
[1772193219082,0.82954881,1963.5,1963.2,0.2702339]
[1772193219590,0.82954881,1963.5,1963.0,1.27465966]
[1772193220191,2.1028318,1963.5,1963.0,1.799395]
[1772193220392,2.1028318,1963.5,1963.0,0.52583534]
[1772193220584,2.06293862,1963.5,1963.0,0.52583534]
[1772193220785,2.06293862,1963.5,1963.4,0.0011]
[1772193221093,0.78965563,1963.4,1963.3,0.0011]
[1772193221274,0.78965563,1963.4,1963.0,0.0011]
[1772193221468,0.78965563,1963.4,1963.1,0.0011]
[1772193222275,0.78965563,1963.2,1963.1,0.0011]
[1772193222703,2.06295704,1963.4,1963.1,0.0011]
[1772193222895,0.78965563,1963.4,1963.1,0.0011]
[1772193223194,0.001,1963.5,1963.1,0.52595811]
[1772193223495,1.27423917,1963.5,1963.1,0.52595811]
[1772193223683,0.001,1963.5,1963.1,0.52595811]
[1772193225283,0.001,1963.5,1963.1,1.79945026]
[1772193225495,0.001,1963.5,1963.2,0.52422851]
[1772193225687,0.001,1963.5,1963.3,1.79022851]
[1772193226712,0.001,1963.5,1963.3,1.266]
[1772193228504,0.001,1963.5,1963.3,1.78931714]
[1772193228902,1.27405313,1963.8,1963.3,3.06263141]
[1772193229077,0.78965563,1963.7,1963.3,1.78931714]
[1772193229478,0.78965563,1963.7,1963.3,3.06267522]
[1772193229921,0.78965563,1963.7,1963.3,1.78931714]
[1772193230085,0.78965563,1963.7,1963.3,1.266]
[1772193230887,1.27317172,1963.6,1963.3,1.266]
[1772193231291,2.06281256,1963.7,1963.3,1.266]
[1772193233098,2.06281256,1963.7,1963.4,0.0011]
[1772193233298,0.001,1963.6,1963.4,0.0011]
[1772193234529,0.79065563,1963.6,1963.4,0.0011]
[1772193235804,0.001,1963.6,1963.4,0.0011]
[1772193238006,0.001,1963.6,1963.4,0.5218572]
[1772193241125,0.79065563,1963.6,1963.4,0.0011]
[1772193241826,0.79065563,1963.6,1963.4,1.27439491]
[1772193242008,0.001,1963.6,1963.4,0.52080015]
[1772193242208,0.001,1963.6,1963.4,0.0011]
[1772193242423,0.001,1963.6,1963.4,0.52054763]
[1772193243038,1.27405002,1963.8,1963.5,0.5182014]
[1772193243039,0.001,1963.8,1963.5,0.5182014]
[1772193243335,0.001,1964.0,1963.7,0.5182014]
[1772193243536,0.78965563,1963.9,1963.6,1.275]
[1772193244539,1.2730388,1963.9,1963.6,1.275]
[1772193244835,0.78965563,1963.8,1963.6,1.275]
[1772193245338,1.27298372,1963.9,1963.6,1.275]
[1772193245639,2.06263935,1963.9,1963.6,1.275]
[1772193245857,0.78965563,1963.9,1963.6,1.275]
[1772193246159,0.78965563,1963.9,1963.4,0.0011]
[1772193246160,0.79065563,1963.7,1963.4,0.0011]
[1772193248340,2.06378049,1963.7,1963.4,0.0011]
[1772193248791,5.09267267,1964.0,1963.5,0.51697271]
[1772193248990,5.09267267,1964.0,1963.7,0.78017439]
[1772193248991,5.09218722,1963.9,1963.7,0.78017439]
[1772193249465,5.09218722,1963.8,1963.4,0.0011]
[1772193249793,5.09218722,1963.8,1963.4,0.78127439]
[1772193250177,5.09218722,1963.7,1963.4,0.78127439]
[1772193250384,7.19674333,1963.7,1963.4,0.0011]
[1772193250594,5.09218722,1963.6,1963.4,0.0011]
[1772193251365,5.92360981,1963.6,1963.4,0.0011]
[1772193251697,5.09218722,1963.5,1963.4,0.0011]
[1772193252091,5.92360981,1963.5,1963.4,0.0011]
[1772193252608,0.83142259,1963.4,1963.1,0.0011]
[1772193252812,0.83142259,1963.3,1963.1,0.0011]
[1772193254609,6.36443831,1963.4,1963.1,0.0011]
[1772193254808,5.09108722,1963.3,1963.1,0.0011]
[1772193255315,5.92250981,1963.3,1963.1,0.0011]
[1772193255523,5.09108722,1963.3,1963.1,0.0011]
[1772193256289,1.27328201,1963.5,1963.1,0.79145392]
[1772193256615,6.36436923,1963.5,1963.1,0.79145392]
[1772193257119,6.36436923,1963.5,1963.1,2.06494961]
[1772193257120,5.09108722,1963.5,1963.1,2.06494961]
[1772193257609,5.09108722,1963.5,1963.1,3.33994961]
[1772193257987,5.09108722,1963.5,1963.4,0.0011]
[1772193259190,0.83242259,1963.7,1963.4,0.0011]
[1772193259392,5.09108722,1963.6,1963.4,0.79145392]
[1772193261518,5.09108722,1963.6,1963.4,0.0011]
[1772193261718,5.92250981,1963.6,1963.4,0.0011]
[1772193263497,5.09108722,1963.6,1963.4,0.0011]
[1772193265808,5.92250981,1963.6,1963.4,0.0011]
[1772193267017,7.19568827,1963.6,1963.4,0.0011]
[1772193267222,5.92250981,1963.6,1963.4,0.0011]
[1772193268610,5.09108722,1963.6,1963.4,0.0011]
[1772193269525,0.83242259,1963.7,1963.4,0.79145392]
[1772193269526,0.001,1963.7,1963.4,0.79145392]
[1772193269825,7.19661686,1963.7,1963.4,0.0011]
[1772193270032,5.09108722,1963.6,1963.4,0.0011]
[1772193270604,5.92250981,1963.6,1963.4,0.0011]
[1772193271022,0.001,1963.5,1963.4,0.0011]
[1772193273827,0.001,1963.5,1963.4,1.2841]
[1772193274040,0.001,1963.5,1963.4,2.55740141]
[1772193274203,0.001,1963.5,1963.4,1.2841]
[1772193276716,5.09208722,1963.5,1963.4,1.2841]
[1772193279215,0.82816689,1963.4,1963.3,0.0011]
[1772193280638,0.001,1963.5,1963.3,0.78429906]
[1772193280826,5.09208722,1963.5,1963.3,0.78429906]
[1772193281215,0.82880374,1963.7,1963.3,1.1378239]
[1772193282035,0.001,1963.7,1963.4,0.78319906]
[1772193282642,0.82880374,1963.7,1963.3,0.35462484]
[1772193282821,0.82880374,1963.7,1963.3,2.41114178]
[1772193283333,0.82880374,1963.7,1963.4,0.0011]
[1772193286041,0.82880374,1963.7,1963.4,0.78429906]
[1772193287148,0.001,1963.7,1963.4,0.78429906]
[1772193288218,0.001,1963.7,1963.4,2.05755122]
[1772193288419,0.001,1963.7,1963.5,1.292]
[1772193290315,0.82880374,1963.7,1963.5,1.292]
[1772193290520,0.82880374,1963.7,1963.4,0.0011]
[1772193292637,2.10194695,1963.7,1963.4,0.0011]
[1772193293227,0.82780374,1963.5,1963.1,0.0011]
[1772193293455,0.82780374,1963.3,1963.1,0.0011]
[1772193293626,0.82780374,1963.1,1963.0,0.0011]
[1772193294317,0.001,1963.7,1963.1,0.78319906]
[1772193294648,0.001,1963.7,1963.6,0.78319906]
[1772193295746,2.10071887,1964.0,1963.6,0.78319906]
[1772193296047,0.82780374,1963.9,1963.5,1.294]
[1772193296545,0.82780374,1963.9,1963.3,0.78319906]
[1772193297737,0.82780374,1963.7,1963.3,0.78319906]
[1772193298063,1.27304206,1963.8,1963.1,0.78429906]
[1772193298064,0.82780374,1963.5,1963.1,0.78429906]
[1772193298274,0.82780374,1963.5,1963.1,2.05775961]
[1772193298560,1.27304206,1963.8,1963.3,0.78319906]
[1772193298859,2.1008458,1963.8,1963.3,0.78319906]
[1772193299452,1.27302472,1963.9,1963.5,0.78319906]
[1772193301237,2.10082846,1963.9,1963.5,0.78319906]
[1772193301451,0.82780374,1963.9,1963.5,2.05643185]
[1772193301640,1.27291242,1964.0,1963.5,2.05643185]
[1772193301840,0.82780374,1964.0,1963.5,0.78319906]
[1772193302037,0.82780374,1963.9,1963.5,0.78319906]
[1772193302253,0.82780374,1963.7,1963.3,2.07819906]
[1772193302457,0.82780374,1963.7,1963.1,2.05776228]
[1772193302636,0.82780374,1963.7,1963.2,0.78319906]
[1772193302836,1.18132858,1964.0,1963.3,0.78319906]
[1772193303040,2.10065135,1964.1,1963.5,0.78319906]
[1772193303353,0.82780374,1964.0,1963.5,0.78319906]
[1772193304152,0.82780374,1963.9,1963.2,0.35352484]
[1772193304350,1.18132858,1963.6,1963.1,0.0011]
[1772193304557,0.82780374,1963.5,1963.1,0.0011]
[1772193305264,0.82780374,1963.5,1963.1,2.05779425]
[1772193305452,0.82780374,1963.5,1963.1,0.78429906]
[1772193306278,0.82780374,1963.5,1963.1,2.05779448]
[1772193306439,2.10104319,1963.5,1963.1,0.78429906]
[1772193306977,2.10104319,1963.5,1963.1,2.05779033]
[1772193307277,0.82780374,1963.5,1963.2,0.0011]
[1772193307651,2.10104745,1963.5,1963.2,0.0011]
[1772193308290,0.82780374,1963.5,1963.2,0.0011]
[1772193309384,2.10104485,1963.5,1963.2,0.0011]
[1772193309585,0.82780374,1963.4,1963.1,0.0011]
[1772193310355,0.82463107,1963.3,1963.1,0.0011]
[1772193310660,1.27330141,1963.4,1963.1,0.0011]
[1772193310961,2.09793248,1963.4,1963.1,0.0011]
[1772193311162,0.82463107,1963.3,1963.1,0.0011]
[1772193311746,0.82463107,1963.3,1963.0,0.0011]
[1772193312248,0.82463107,1963.3,1962.8,0.0011]
[1772193312455,0.82463107,1963.1,1962.8,0.0011]
[1772193314585,0.82463107,1962.9,1962.6,0.0011]
[1772193314878,1.27356087,1963.0,1962.6,0.0011]
[1772193314879,0.82463107,1962.7,1962.6,0.0011]
[1772193315091,0.82463107,1962.7,1962.1,0.0011]
[1772193315452,0.82463107,1962.9,1962.2,0.82059267]
[1772193316672,0.82463107,1962.7,1962.1,0.0011]
[1772193316873,0.82463107,1962.7,1962.1,1.27524044]
[1772193317055,0.82463107,1962.7,1962.1,0.82169267]
[1772193318385,1.27354381,1963.1,1962.2,0.82059267]
[1772193318567,1.27354381,1963.1,1962.4,0.82059267]
[1772193318985,5.91851342,1963.2,1962.5,0.82059267]
[1772193319586,1.27343113,1963.2,1962.5,0.82059267]
[1772193320970,1.27343113,1963.2,1962.6,2.09441311]
[1772193322304,2.09804892,1963.3,1962.7,0.82059267]
[1772193323085,2.09804892,1963.3,1962.7,2.09431663]
[1772193323386,2.09804892,1963.3,1962.8,0.82059267]
[1772193323756,0.82463107,1963.2,1962.6,2.09438861]
[1772193324159,0.82463107,1963.2,1962.7,0.82059267]
[1772193324581,0.82463107,1963.2,1962.5,0.82059267]
[1772193324784,1.27341785,1963.3,1962.5,0.82059267]
[1772193325088,2.09804892,1963.3,1962.7,0.82059267]